Cogmind - Beta 16.1 @@@ ROGUE MODE // 2026.02.16 @ 01:15:55 Player: Lintence Result: Self-destructed Performance ------------- Evolutions (1) 500 Regions Visited (2) 400 Robots Destroyed (12) 60 Value Destroyed (286) 286 Prototype IDs (0) 0 Alien Tech Used (0) 0 Bonus (0) 0 TOTAL SCORE: 1246 Bonus ------- None Cogmind --------- Core Integrity 357/400 Matter 235/300 Energy 250/250 System Corruption 0% Temperature Cool (6) Movement Walking (105) Location -9/Materials Parts ------- > --- POWER (1) -------- Ion Engine > --- PROPULSION (3) --- Aluminum Leg Aluminum Leg Aluminum Leg > --- UTILITY (3) ------ Heat Sink Small Storage Unit Medium Armor Plating > --- WEAPON (2) ------- Assault Rifle Heavy Assault Rifle > --- INVENTORY (8) ---- Light Ion Engine Light Ion Engine Assault Rifle Light Assault Rifle Peak State ------------ > --- POWER ------------ Ion Engine > --- PROPULSION ------- Aluminum Leg Aluminum Leg Aluminum Leg > --- UTILITY ---------- Heat Sink Small Storage Unit Medium Armor Plating > --- WEAPON ----------- Assault Rifle Heavy Assault Rifle > --- INVENTORY -------- Light Ion Engine Light Ion Engine Assault Rifle Light Assault Rifle [Rating: 11] Favorites ----------- Power Ion Engine Engine Ion Engine Propulsion Aluminum Leg Leg Aluminum Leg Utility Small Storage Unit Device Heat Sink Storage Small Storage Unit Protection Medium Armor Plating Weapon Assault Rifle Ballistic Gun Assault Rifle Build | -11 -10 -9 ------- Run | Yrd Mat Mat Slots Evolved 2 | . . 2 Power . | . . . Propulsion 1 | . . 1 Utility 1 | . . 1 Weapon . | . . . Parts Attached 12 | 6 3 3 Power 2 | 1 1 . Engine 2 | 1 1 . Core . | . . . Reactor . | . . . Propulsion 3 | 2 . 1 Treads . | . . . Leg 3 | 2 . 1 Wheel . | . . . Hover . | . . . Flight . | . . . Utility 3 | 1 1 1 Device 1 | . 1 . Storage 1 | 1 . . Processor . | . . . Hackware . | . . . Protection 1 | . . 1 Artifact . | . . . Weapon 4 | 2 1 1 Energy Gun . | . . . Energy Cannon . | . . . Ballistic Gun 4 | 2 1 1 Ballistic Cannon . | . . . Launcher . | . . . Special Weapon . | . . . Impact Weapon . | . . . Slashing Weapon . | . . . Piercing Weapon . | . . . Special Melee Weapon . | . . . Unidentified Prototypes . | . . . Parts Lost . | . . . Power . | . . . Propulsion . | . . . Utility . | . . . Weapon . | . . . Highest Loss Streak . | . . . To Critical Strikes . | . . . Average Backups 2 | 1 2 3 Power 1 | . 1 2 Propulsion . | . . . Utility . | . . . Weapon 1 | . 1 1 Tool/Special . | . . . Unused Backups 1 | . . 1 Power 1 | . . 1 Propulsion . | . . . Utility . | . . . Weapon . | . . . Tool/Special . | . . . Average Slot Usage (%) 94 | . 90 97 Engine 12 | . 14 11 Leg 30 | . 28 33 Device 8 | . 5 11 Storage 12 | . 14 11 Protection 4 | . . 8 Ballistic Gun 24 | . 28 22 Peak Build Rating 11 | 6 7 11 Average Rating 7 | 4 6 10 On Entrance 4 | . 6 7 Avg Prop Armor Cover (%) . | . . . Naked Turns . | . . . Heaviest Build 23 | 11 15 23 Greatest Support 30 | 20 20 30 Greatest Overweight (x) . | . . . Average Overweight (x) . | . . . Largest Inventory Capacity 8 | 8 8 8 Average Capacity 7 | 6 8 8 Most Carried 4 | 2 4 4 Average Carried 2 | 1 2 3 Final Capacity 8 | 8 8 8 Final Carried 4 | 2 4 4 Class Distribution -------------------- 70% | Mutant 29% | Scavenger-Mutant Dominant Class ---------------- Mutant | -10/Materials Scavenger-Mutant | -9/Materials Resources | -11 -10 -9 ----------- Run | Yrd Mat Mat Matter Collected 417 | 218 144 55 Remotely . | . . . Salvage Created 496 | . 288 208 Parts 31 | . 14 17 Haulers Intercepted . | . . . Recyclers Shooed . | . . . Parts Field Recycled . | . . . Retrieved Matter . | . . . Parts Self-Destructed . | . . . Prevented . | . . . Parts Restored . | . . . Kills | -11 -10 -9 ------- Run | Yrd Mat Mat Combat Hostiles Destroyed 9 | . 3 6 Guns 9 | . 3 6 Classes Destroyed 5 | . 2 3 Recycler 2 | . 2 . Operator 1 | . . 1 Swarmer 3 | . . 3 Grunt 5 | . 3 2 Sentry 1 | . . 1 Best Kill Streak 6 | . 5 6 Combat Bots Only 5 | . 3 5 Max Kills in Single Turn 2 | . 1 2 Gunslinging 1 | . . 1 Exploded . | . . . Melee . | . . . Uniques/NPCs Destroyed . | . . . Combat | -11 -10 -9 -------- Run | Yrd Mat Mat Hostile Shots Fired 39 | . 15 24 Missed 14 | . 6 8 Hits 25 | . 9 16 Projectile 25 | . 9 16 Damage Taken 296 | . 122 174 Core 101 | . 58 43 Absorbed by Shields . | . . . Core Remaining (%) 88 | 100 76 . Volleys Fired 27 | . 16 11 Largest 2 | . 2 2 Hottest 43 | . 40 43 Shots Fired 54 | . 32 22 Gun 54 | . 32 22 Cannon . | . . . Launcher . | . . . Special . | . . . Kinetic 54 | . 32 22 Thermal . | . . . Explosive . | . . . Electromagnetic . | . . . Robot Hit Streak 12 | . 12 9 Robot Miss Streak 2 | . 2 1 Penetration Max . | . . . Secondary Targets 2 | . . 2 Max Gunslinging Chain 1 | . . 1 Shots Hit Robots 39 | . 22 17 Core Hits 20 | . 10 10 Critical Kills . | . . . Critical Parts Destroyed . | . . . Critical Strikes . | . . . Melee Attacks . | . . . Impact . | . . . Slashing . | . . . Piercing . | . . . Sneak Attacks . | . . . Combat Hostiles . | . . . Follow-up Attacks . | . . . Damage Inflicted 526 | . 283 243 Guns 526 | . 283 243 Cannons . | . . . Explosions . | . . . Melee . | . . . Ramming . | . . . Kinetic 526 | . 283 243 Thermal . | . . . Explosive . | . . . Electromagnetic . | . . . Impact . | . . . Slashing . | . . . Piercing . | . . . Highest Corruption . | . . . Average Corruption . | . . . Corruption Purged . | . . . Corruption Blocked . | . . . Overload Shots . | . . . Overflow Damage . | . . . Projectiles . | . . . Explosions . | . . . Melee . | . . . Knockbacks . | . . . Impact . | . . . Kinetic . | . . . Secondary . | . . . Self-Inflicted Damage . | . . . Shots . | . . . Rammed . | . . . Targets Rammed . | . . . Kicked . | . . . Crushed . | . . . Highest Temperature 2 | . 2 . Average Temperature 2 | . 2 . Received Heat Transfer 117 | . 69 48 Siege Activations . | . . . Martial Activations . | . . . Shielding Activations . | . . . Robots Disrupted . | . . . Combat Hostiles . | . . . Robots Corrupted . | . . . Combat Hostiles . | . . . Parts Fried . | . . . Impact Corruptions . | . . . Robots Melted . | . . . Combat Hostiles . | . . . Parts Melted . | . . . Heat Transferred . | . . . Parts Sabotaged . | . . . Parts Stolen . | . . . Parts Stripped . | . . . Power Chain Reactions . | . . . Alert | -11 -10 -9 ------- Run | Yrd Mat Mat Maximum Alert Level . | . . . Low Security (%) 100 | 100 100 100 Level 1 . | . . . Level 2 . | . . . Level 3 . | . . . Level 4 . | . . . Level 5 . | . . . High Security . | . . . Max Security . | . . . Peak Influence 114 | . 85 114 Initial 27 | . . 27 Average 28 | . 33 33 Influence Increases 252 | . 105 147 Destroy 0b10 Robot/C 180 | . 60 120 Destroy 0b10 Robot/NC 15 | . 10 5 Destroy Leader 40 | . 20 20 Successful Hack 2 | . . 2 Lose Combat Pursuer 15 | . 15 . Influence Decreases 148 | . 40 108 Entered New Map 38 | . . 38 Time Decay 110 | . 40 70 Squads Dispatched 2 | . 1 1 Investigation . | . . . Extermination . | . . . Reinforcement 2 | . 1 1 Assault . | . . . Garrison . | . . . Intercept . | . . . Searches Triggered . | . . . Construction Impeded . | . . . Haulers Reinforced . | . . . Active Scanning Responses . | . . . Cargo Convoy Interrupts . | . . . Stealth | -11 -10 -9 --------- Run | Yrd Mat Mat Distress Signals 1 | . 1 . Communications Jammed . | . . . Distress Signals . | . . . Times Spotted 17 | . 6 11 Peak Tracking Total 6 | . 3 6 Tactical Retreats 1 | . 1 . Traps | -11 -10 -9 ------- Run | Yrd Mat Mat Traps Triggered . | . . . Indirectly . | . . . Trap Hack Attempts . | . . . Triggered . | . . . Disarmed . | . . . Reprogrammed . | . . . Reused . | . . . Traps Extracted . | . . . Installed . | . . . Triggered . | . . . Machines | -11 -10 -9 ---------- Run | Yrd Mat Mat Machines Disabled . | . . . Max in Single Turn . | . . . Machines Repaired . | . . . Machines Dismantled . | . . . Machines Sabotaged . | . . . Overloaded Fab Kills . | . . . Hacking | -11 -10 -9 --------- Run | Yrd Mat Mat Machines Accessed 2 | . . 2 Terminals 1 | . . 1 Fabricators . | . . . Repair Stations . | . . . Recycling Units . | . . . Scanalyzers 1 | . . 1 Garrison Access . | . . . Total Hacks 6 | . . 6 Successful 3 | . . 3 Failed 3 | . . 3 Catastrophic 1 | . . 1 Database Lockouts . | . . . Manual 1 | . . 1 Terminals 1 | . . 1 Fabricators . | . . . Repair Stations . | . . . Recycling Units . | . . . Scanalyzers 5 | . . 5 Garrison Access . | . . . Terminal Hacks . | . . . Fabricator Hacks . | . . . Repair Station Hacks . | . . . Recycling Unit Hacks . | . . . Scanalyzer 3 | . . 3 Retrieve Study 3 | . . 3 Garrison Access Hacks . | . . . Unauthorized Hacks . | . . . Terminals . | . . . Fabricators . | . . . Repair Stations . | . . . Recycling Units . | . . . Scanalyzers . | . . . Garrison Access . | . . . Data Cores Recovered . | . . . Used . | . . . Hacking Detections 2 | . . 2 Full Trace Events . | . . . Feedback Events . | . . . Feedback Blocked . | . . . Robot Schematics Acquired . | . . . Robots Built . | . . . Authchips . | . . . Time . | . . . Total Robot Build Rating . | . . . Part Schematics Acquired . | . . . Parts Built . | . . . Authchips . | . . . Time . | . . . Total Part Build Rating . | . . . Part Studies Acquired 3 | . . 3 Parts Repaired . | . . . Time . | . . . Parts Recycled . | . . . Recycled Matter . | . . . Retrieved Matter . | . . . Retrieved Components . | . . . Parts Scanalyzed . | . . . Part Schematics Acquired . | . . . Parts Damaged . | . . . Bothacking | -11 -10 -9 ------------ Run | Yrd Mat Mat Used RIF Installer . | . . . Robots Hacked . | . . . Non-combat . | . . . Combat . | . . . Robot Hacks Applied . | . . . Relay Couplers Released . | . . . Fabnet Peak Effective % . | . . . Robots Rewired . | . . . Allies Hacked . | . . . Hacks Repelled . | . . . Allies | -11 -10 -9 -------- Run | Yrd Mat Mat Total Allies . | . . . Largest Group . | . . . Highest-Rated Group . | . . . Highest-Rated Ally . | . . . Total Orders . | . . . Ally Attacks . | . . . Total Damage . | . . . Kills . | . . . Allies Corrupted . | . . . Allies Melted . | . . . Intel | -11 -10 -9 ------- Run | Yrd Mat Mat Active Infowar (turns) . | . . . Robot Analysis Total . | . . . Derelict Logs Recovered . | . . . Drone Launches . | . . . Drone Recoveries . | . . . Exploration | -11 -10 -9 ------------- Run | Yrd Mat Mat Turns Passed 324 | 49 130 145 Spaces Moved 179 | 33 61 85 Core 1 | 1 . . Treads . | . . . Legs 178 | 32 61 85 Wheels . | . . . Hover . | . . . Flight . | . . . Fastest Speed 50 | 50 120 105 Average Speed 112 | 117 120 105 Slowest Speed 120 | 120 120 120 Overloaded Moves . | . . . Propulsion Burnouts . | . . . Robots Hopped . | . . . Potential Cave-ins . | . . . Cave-ins Triggered . | . . . Exploration Rate (%) 10 | 4 19 7 Regions Visited 2 Branch Regions . Pre-discovered Areas . | . . . Known Exits Taken . | . . . Unknown Exits Taken 2 | 1 1 . Scrap Searched . | . . . Spaces Dug . | . . . Terrain Destroyed . | . . . Melee . | . . . Projectile . | . . . AOE . | . . . Terrain Rammed . | . . . Walls Destroyed . | . . . Machines Disabled . | . . . Actions | -11 -10 -9 --------- Run | Yrd Mat Mat Total 241 | 40 84 117 Wait 22 | . 4 18 Move 177 | 32 60 85 Hop . | . . . Pick Up 3 | 2 1 . Fast Attach 8 | 6 1 1 Attach 1 | . . 1 Detach . | . . . Swap 3 | . 2 1 Drop . | . . . Fire 27 | . 16 11 Melee . | . . . Ram . | . . . Kick . | . . . Crush . | . . . Escape Stasis . | . . . Rewire . | . . . Trap . | . . . Miscellaneous . | . . . Route ------- -11/Scrapyard -10/Materials -9/Materials History --------- Turn | Location | Event 19 | -11/Scrapyard | Discovered new exit (range 14) 50 | -11/Scrapyard | Entered Materials 138 | -10/Materials | Discovered new exit (range 10) 180 | -10/Materials | Entered another Materials area 180 | -9/Materials | Evolved 2 slots: Propulsion x1, Utility x1 325 | -9/Materials | Self-destructed Last Messages --------------- 00302_ T-07 Excavator is excavating. 00303_ R-06 Scavenger collects Aluminum Leg+. 00304_ U-05 Engineer lays Concrete. 00305_ S-10 Pest destroyed. 00305_ R-06 Scavenger collects Flight Unit. 00305_ U-05 Engineer lays Concrete. 00306_ R-06 Scavenger collects Aluminum Leg+. 00307_ U-05 Engineer lays Concrete. 00307_ R-06 Scavenger collects Lgt. Ion Engine. 00308_ G-34 Mercenary destroyed. 00309_ R-06 Scavenger collects Sml. Laser. 00309_ R-06 Scavenger collects Flight Unit. 00313_ O-16 Technician uses terminal to summon reinforcements. 00313_ ALERT: Hostiles spotted, dispatching reinforcements to Terminal M011. 00313_ O-16 Technician locks terminal. 00313_ R-06 Scavenger collects Ion Engine. 00314_ O-16 Technician destroyed. 00322_ R-06 Scavenger collects Aluminum Leg+. Map ----- +----------------------------------------------------+ | ?????????????????????????????????????????????????? | | ?????????????????????????????????????????????????? | | ?????????????????????????????????????????????????? | | ?????????????????????????????????????????????????? | | ?????????????????????????#???????????????????????? | | ????????????????????????# ???????????????????????? | | ????????????????????????# ???????????????????????? | | ????????????????????????# ?????????#####?????????? | | ?????????????????##?????# ??######## #?????????? | | ?????????????????# ??### ### "" # #?????????? | | ??????????????????# ### # ""S # #?????????? | | ??????????????????? *%= # "" + #?????????? | | ???????????????????? = %T # # #?????????? | | ?????????????????????*% # # #?????????? | | ??????????????????????# # # #?????????? | | ???????????????????????#% ######### #?????????? | | ???????????????????????# #???????# #?????????? | | ???????????????????????# #???????# #?????????? | | ???????????????????????# r#???????# #?????????? | | ???????????????????????# #???????# ##########? | | ???????????????????????#u #???????# ## ? | | ??????????????????????## ##?????## ## ?? | | ??????????????????????# ####### r # """"""?? | | ??????????????????????# w T" # """"""?? | | ??????????????????????# " + """"""?? | | ??????????????????????# r@ gaw # """""??? | | ??????????????????????# [% ####### # """""??? | | ??????????????????????###a #?????####### ??? | | ????????????????????????#% #???????????#####+##?? | | ????????????????????????# #????????????????????? | | ????????????????????????# #????????????????????? | | ????????????????????????# #????????????????????? | | ????????????????????????# #????????????????????? | | ????????????????????????# #????????????????????? | | ????????????????????????# #????????????????????? | | ????????????????????????# #????????????????????? | | ????????????????????????# r #????????????????????? | | ????????????????????????# #????????????????????? | | ????????????????????????? #????????????????????? | | ????????????????????????? +????????????????????? | | ????????????????????????? ?????????????????????? | | ?????????????????????????????????????????????????? | | ?????????????????????????????????????????????????? | | ?????????????????????????????????????????????????? | | ?????????????????????????????????????????????????? | | ?????????????????????????????????????????????????? | | ?????????????????????????????????????????????????? | | ?????????????????????????????????????????????????? | | ?????????????????????????????????????????????????? | | ?????????????????????????????????????????????????? | +----------------------------------------------------+ Best States ------------- Heat Dissipation 38 Energy Generation 10 Energy Capacity 250 Matter Stores 300 Matter Capacity 300 Sight Range 16 Terrain Scan Density 10 Armor Coverage 225 Evasion (%) 55 Item Schematics ----------------- None Robot Schematics ------------------ None Fabricated ------------ Nothing Repaired ---------- Nothing Studied --------- Aluminum Leg | -9/Materials | Hacked Assault Rifle | -9/Materials | Hacked Hvy. Assault Rifle | -9/Materials | Hacked Alien Tech Used ----------------- None Achievements -------------- None Challenges ------------ None Game ------ Seed StorageDirtyMaul Manual? 0 Play Time 00:04:54 Cumulative 84.5 hours Start 2026.02.16 @ 01:12:26 End 2026.02.16 @ 01:15:55 Sessions 1 Manual Loads 0 Difficulty Rogue Special Mode None Game No. 159 Rogue 159 Adventurer 0 Explorer 0 Win Type - Total 1 Types 1/0/0/0/0/0/0/0/0/0 Lore% 25 Gallery% 35 Achievement% 25 Wizard Run 0 Options --------- Layout 1 ASCII 0 Keyboard 0 Movement Mouse Keybinds 0 Fullscreen 2 Font 20/X11 Map View 50x35 Zoom Use 0% Tactical HUD 1 Map Filters NONE Filters NONE Steam 1 RUN: 6bb4c4cb-27b1-4e0c-9a82-b99e1c694cf4